bitfinex-derivatives/quotes_SOLF0:USTF0_20251210
["timestamp","ask_amount","ask_price","bid_price","bid_amount"]
[1765398184251,0.0488017,139.74,139.72,0.05293933]
[1765398184455,100.048,139.91,139.73,100.1732]
[1765398184655,100.0495,139.91,139.73,100.1732]
[1765398184852,14.67321598,139.92,139.77,100.1416]
[1765398185160,100.0289,139.94,139.77,100.1437]
[1765398185360,0.05501835,139.87,139.84,0.04668164]
[1765398185560,0.05422162,139.87,139.84,0.05114269]
[1765398185855,99.9632,140.03,139.86,100.0789]
[1765398186055,99.9725,140.02,139.85,100.0836]
[1765398186257,14.67321598,140.03,139.89,100.0594]
[1765398186756,0.04965483,139.97,139.95,0.05381926]
[1765398186952,0.04969695,139.97,139.95,0.05381926]
[1765398187349,99.9501,140.05,139.95,0.05381926]
[1765398187350,99.949,140.05,139.95,0.05381926]
[1765398187555,99.9516,140.05,139.89,100.059]
[1765398187756,99.9638,140.03,139.87,100.0717]
[1765398187963,174.14531598,140.07,139.9,100.0492]
[1765398188260,0.04599306,140.0,139.97,0.05246056]
[1765398188456,0.0453842,140.0,139.97,0.04857237]
[1765398188664,0.0453842,140.0,139.84,14.67321598]
[1765398188665,0.0453842,140.0,139.84,100.0933]
[1765398188857,14.67321598,140.01,139.87,100.0619]
[1765398189353,14.67321598,140.01,139.86,100.0671]
[1765398189564,14.67321598,140.01,139.86,100.0706]
[1765398189746,0.04705902,139.95,139.92,0.04592678]
[1765398189952,0.05312817,139.95,139.92,0.04734777]
[1765398190751,0.05312817,139.95,139.78,395.1281]
[1765398190752,1.47312817,139.95,139.83,100.0895]
[1765398190954,1.47312817,139.95,139.78,60.5]
[1765398190955,100.0003,139.96,139.82,100.0969]
[1765398191157,14.67321598,140.0,139.84,100.0811]
[1765398191458,159.4893,140.04,139.89,100.0461]
[1765398191459,59.54,140.04,139.89,100.0461]
[1765398191648,0.05417328,139.98,139.95,0.05354632]
[1765398191854,0.05443633,139.98,139.95,0.0498191]
[1765398193459,99.9442,140.04,139.95,0.0498191]
[1765398193657,99.9165,140.08,139.93,100.0175]
[1765398193854,99.9272,140.07,139.92,100.0261]
[1765398194067,99.9039,140.1,139.95,100.0021]
[1765398194365,99.9152,140.08,140.01,0.04850274]
[1765398194659,99.9152,140.08,139.85,504.5]
[1765398194660,99.9389,140.05,139.85,504.5]
[1765398194859,106.3571,140.06,139.87,14.67321598]
[1765398195065,99.9479,140.04,139.87,100.0645]
[1765398195365,99.9444,140.04,139.89,100.0481]
[1765398195573,6.4251,140.04,139.92,106.4555]
[1765398195764,0.05302455,139.98,139.95,0.04659763]
[1765398196069,0.05477245,139.98,139.95,0.05028277]
[1765398196863,100.0248,139.93,139.8,100.1142]
[1765398197051,99.9931,139.97,139.83,100.0899]
[1765398197251,100.001,139.96,139.83,100.0899]
[1765398197467,106.4296,139.96,139.83,106.5244]
[1765398197662,114.68371598,139.95,139.8,160.5943]
[1765398197863,6.428,139.98,139.86,0.04701117]
[1765398198165,99.96,140.02,139.86,100.0696]
[1765398198353,99.9629,140.02,139.87,100.0597]
[1765398198557,99.9444,140.04,139.88,100.0539]
[1765398198766,99.9652,140.01,139.89,60.48]
[1765398198962,0.00409499,139.96,139.94,0.05461921]
[1765398199160,99.9258,140.07,139.92,100.0288]
[1765398199460,99.9879,139.98,139.83,100.0902]
[1765398199658,99.9858,139.99,139.85,160.5581]
[1765398199856,99.9724,140.0,139.86,100.0689]
[1765398200160,99.9505,140.03,139.92,0.05271419]
[1765398200360,99.9772,140.0,139.87,21.10551598]
[1765398200572,100.0078,139.95,139.85,60.48]
[1765398200861,99.9898,139.98,139.85,100.0754]
[1765398201056,0.05251705,139.93,139.9,0.05347449]
[1765398201258,99.959,140.02,139.9,0.05347449]
[1765398201556,99.9446,140.04,139.9,100.0403]
[1765398201757,99.9446,140.04,139.83,300.2676]
[1765398201758,100.023,139.93,139.79,100.1196]
[1765398201963,100.0335,139.92,139.79,100.1197]
[1765398202159,0.05123807,139.87,139.84,0.05372309]
[1765398202365,100.0044,139.96,139.83,100.091]
[1765398202665,106.4763,139.9,139.77,106.5685]
[1765398202869,100.0219,139.93,139.81,100.1019]
[1765398203080,100.0413,139.91,139.78,60.48]
[1765398203259,6.4309,139.91,139.83,0.05231828]
[1765398203566,100.0317,139.92,139.83,0.05231828]
[1765398203865,106.5281,139.83,139.71,6.4396]
[1765398204170,100.1085,139.81,139.71,60.48]
[1765398204358,0.04658499,139.77,139.75,0.04871577]
[1765398204761,100.18378499,139.77,139.75,0.04871577]
[1765398205062,106.62048499,139.77,139.75,0.04871577]
[1765398205268,106.62308499,139.77,139.75,0.04871577]
[1765398205467,6.48388499,139.77,139.75,0.04871577]
[1765398205867,0.04658499,139.77,139.75,0.04871577]
[1765398206174,114.75251598,139.85,139.75,3.89871577]
[1765398206358,100.0953,139.83,139.75,3.85]
[1765398206767,100.1085,139.81,139.75,3.85]
[1765398207059,59.54,139.87,139.75,3.85]
[1765398207060,200.1284,139.88,139.75,3.85]
[1765398207261,0.051949,139.83,139.81,3.85]
[1765398207457,6.4327,139.88,139.81,3.90424231]
[1765398207870,100.0347,139.92,139.81,3.90424231]
[1765398208064,6.4304,139.93,139.83,3.85]
[1765398208260,100.0446,139.9,139.83,3.85]
[1765398208462,100.0446,139.9,139.85,0.04527978]
[1765398208771,0.05359474,139.88,139.85,3.89527978]
[1765398209074,100.0097,139.95,139.85,3.85]
[1765398209273,100.0154,139.94,139.85,3.85]
[1765398209566,100.0168,139.94,139.85,3.85]
[1765398209771,6.4289,139.96,139.87,3.94]
[1765398209960,0.03689167,139.93,139.9,0.04777734]
[1765398210359,0.03689167,139.93,139.9,3.98777734]
[1765398210764,0.03689167,139.93,139.9,0.04777734]
[1765398211073,0.03689167,139.93,139.9,3.98777734]
[1765398211574,6.4282,139.97,139.9,3.98777734]
[1765398211773,106.423,139.97,139.9,3.98777734]
[1765398211962,100.0006,139.96,139.9,3.98777734]
[1765398212163,99.9886,139.98,139.9,3.98777734]
[1765398212359,99.961,140.02,139.91,3.94]
[1765398212672,6.4285,139.97,139.95,0.04861076]
[1765398212970,106.4221,139.97,139.95,0.04861076]
[1765398213366,6.4285,139.97,139.95,0.04861076]
[1765398213673,106.4245,139.97,139.95,0.04861076]
[1765398214173,99.9723,140.0,139.95,4.01861076]
[1765398214362,99.9931,139.97,139.95,0.04861076]
[1765398214667,6.4285,139.96,139.95,0.04861076]
[1765398214870,99.9654,140.01,139.95,0.04861076]
[1765398215269,99.9788,139.99,139.95,0.04861076]
[1765398215471,99.9868,139.98,139.95,0.04861076]
[1765398215670,99.9937,139.97,139.95,0.04861076]
[1765398215868,106.4221,139.97,139.95,0.04861076]
[1765398216468,106.4216,139.97,139.95,0.04861076]
[1765398216875,6.4284,139.97,139.95,0.04861076]
[1765398217071,6.4263,140.01,139.95,0.04861076]
[1765398217496,99.9444,140.04,139.95,0.04861076]
[1765398217668,99.9024,140.1,139.98,4.02213031]
[1765398217869,99.908,140.09,140.03,0.05252636]
[1765398218077,6.4227,140.09,140.03,0.05252636]
[1765398218278,99.8804,140.13,140.03,4.02252636]
[1765398218474,99.8804,140.13,140.07,0.04594308]
[1765398218784,6.4208,140.13,140.07,0.04594308]
[1765398218983,99.8827,140.13,140.07,0.04594308]
[1765398219275,99.8747,140.14,140.07,4.01594308]
[1765398219482,99.8617,140.16,140.07,4.01594308]
[1765398219680,159.3911,140.17,140.1,0.04800221]
[1765398219876,99.8809,140.13,140.1,0.04800221]
[1765398220076,159.3911,140.17,140.1,0.04800221]
[1765398220268,99.872,140.14,140.1,0.04800221]
[1765398220472,159.3911,140.17,140.1,4.01800221]
[1765398220772,106.3089,140.12,140.1,0.04800221]
[1765398220983,99.9367,140.05,139.98,3.97]
[1765398221183,99.9461,140.04,139.98,3.97]
[1765398221366,99.9367,140.05,139.98,3.97]
[1765398221674,99.9575,140.02,139.92,3.97]
[1765398221875,0.04800221,139.98,139.96,0.04919517]
[1765398222078,259.378,140.08,139.97,3.97]
[1765398222280,159.4555,140.08,139.97,3.97]
[1765398222872,6.4243,140.06,139.98,3.97]
[1765398223073,99.9304,140.06,140.01,0.05305242]
[1765398223273,99.9219,140.07,140.01,4.02305242]
[1765398223480,99.9289,140.06,140.01,0.05305242]
[1765398223782,99.9007,140.1,140.01,4.02305242]
[1765398223983,99.8693,140.15,140.04,4.01903885]
[1765398224177,99.8693,140.15,140.08,0.04656526]
[1765398224686,6.42,140.15,140.08,0.04656526]
[1765398224883,6.42,140.15,140.08,4.01656526]
[1765398225181,99.8476,140.18,140.09,3.97]
[1765398225386,99.8012,140.24,140.12,4.0230219]
[1765398225603,6.4165,140.23,140.16,4.01731909]
[1765398226083,6.4135,140.29,140.18,6.4183]
[1765398226382,99.8366,140.19,140.11,3.97]
[1765398226577,99.817,140.22,140.11,3.97]
[1765398226772,99.8232,140.21,140.11,3.97]
[1765398227182,6.4172,140.21,140.11,3.97]
[1765398227384,0.05026326,140.17,140.15,0.0462208]
[1765398227575,0.04633747,140.17,140.15,4.0162208]
[1765398227888,0.04633747,140.17,140.15,0.0462208]
[1765398228785,0.04633747,140.17,140.15,4.0162208]
[1765398229484,0.04633747,140.17,140.15,0.0462208]
[1765398231385,0.04633747,140.17,140.15,4.0162208]
[1765398232081,99.7834,140.27,140.15,4.0162208]
[1765398232286,6.4158,140.24,140.15,3.97]
[1765398232483,99.7834,140.27,140.15,3.97]
[1765398232683,99.7874,140.26,140.15,3.97]
[1765398232889,99.7834,140.27,140.15,3.97]
[1765398233097,99.8092,140.23,140.2,0.04928278]
[1765398233289,6.4169,140.22,140.2,0.04928278]
[1765398233491,14.67321598,140.24,140.2,0.04928278]
[1765398233681,14.67321598,140.28,140.2,0.04928278]
[1765398233888,21.08711598,140.28,140.23,0.05219364]
[1765398234089,6.4139,140.28,140.24,0.05248105]
[1765398234293,6.4139,140.28,140.19,3.97]
[1765398234294,99.725,140.35,140.25,0.05288591]
[1765398234487,6.4119,140.33,140.28,0.05417823]
[1765398234792,6.4119,140.33,140.29,0.04998847]
[1765398234992,106.1563,140.32,140.3,0.04502614]
[1765398235192,99.7758,140.28,140.17,3.97]
[1765398235388,99.7609,140.3,140.17,3.97]
[1765398235583,99.7655,140.29,140.17,3.97]
[1765398235886,99.7587,140.3,140.2,3.97]
[1765398236196,0.04635091,140.26,140.24,0.04783356]
[1765398236390,0.04985354,140.26,140.24,0.05382994]
[1765398236887,6.46485354,140.26,140.24,0.05382994]
[1765398237188,0.04985354,140.26,140.18,3.97]
[1765398237386,99.83995354,140.26,140.18,3.97]
[1765398237788,99.8098,140.23,140.13,3.97]
[1765398238092,99.8061,140.24,140.13,3.97]
[1765398238291,0.05313768,140.2,140.17,4.01571733]
[1765398238488,99.7751,140.28,140.17,4.01904624]
[1765398238693,114.43711598,140.3,140.18,3.97]
[1765398238694,99.7658,140.29,140.18,3.97]
[1765398238891,99.7734,140.28,140.18,3.97]
[1765398239092,99.7729,140.28,140.2,3.97]
[1765398239293,99.791,140.26,140.2,3.97]
[1765398239492,6.4164,140.23,140.22,0.04827962]
[1765398240598,99.8112,140.23,140.15,3.97]
[1765398240785,99.8112,140.23,140.06,60.36]
[1765398240786,99.8447,140.18,140.07,3.97]
[1765398240983,99.8093,140.23,140.07,3.97]
[1765398241289,99.8183,140.22,140.15,3.97]
[1765398241488,99.8365,140.19,140.17,0.04640144]
[1765398241793,99.865,140.15,140.1,3.97]
[1765398242097,99.865,140.15,140.06,60.36]
[1765398242098,6.4196,140.16,140.08,3.97]
[1765398242293,99.866,140.15,140.08,3.97]
[1765398242496,99.8795,140.13,140.06,60.36]
[1765398242993,6.4223,140.1,140.08,0.04644646]
[1765398243989,0.04884148,140.11,140.08,0.04644646]
[1765398244887,0.04884148,140.11,140.08,3.90644646]
[1765398245094,99.8295,140.2,140.08,5.32644646]
[1765398245282,99.8218,140.22,140.11,3.86]
[1765398245693,99.7699,140.29,140.17,103.7075]
[1765398245892,99.7805,140.27,140.17,3.86]
[1765398246094,0.05062163,140.23,140.21,0.04912515]
[1765398246393,99.7838,140.27,140.21,0.04912515]
[1765398247002,99.7947,140.25,140.21,0.04912515]
[1765398247385,99.85392905,140.24,140.21,0.04912515]
[1765398247592,99.8308,140.2,140.11,3.86]
[1765398248600,6.4197,140.16,140.14,0.05209508]
[1765398248797,99.91534542,140.16,140.06,3.86]
[1765398248993,99.8791,140.13,140.06,3.86]
[1765398249297,99.8713,140.15,140.06,3.86]
[1765398249495,99.8794,140.13,140.06,3.86]
[1765398249697,6.4215,140.12,140.06,3.86]
[1765398249897,0.04838986,140.1,140.08,0.0527073]
[1765398250096,0.05313909,140.1,140.08,0.0527073]
[1765398250503,6.47553909,140.1,140.08,0.0527073]
[1765398250699,106.37583909,140.1,140.08,0.0527073]
[1765398250903,106.37583909,140.1,140.01,3.86]
[1765398250904,99.9082,140.09,140.01,3.86]
[1765398251092,99.8893,140.12,140.01,3.86]
[1765398251408,99.86,140.16,140.07,3.86]
[1765398251409,99.8575,140.16,140.07,3.86]
[1765398251613,99.8509,140.17,140.07,3.86]
[1765398251806,0.04825638,140.13,140.11,0.05023846]
[1765398252895,6.46925638,140.13,140.11,0.05023846]
[1765398253094,6.46925638,140.13,139.99,3.86]
[1765398253095,99.9194,140.08,139.99,3.86]
[1765398253296,99.9369,140.05,139.99,3.86]
[1765398253707,99.9194,140.08,139.99,3.86]
[1765398253908,99.9035,140.1,140.03,3.86]
[1765398254106,0.04899808,140.08,140.05,0.04910562]
[1765398254404,0.04899808,140.08,140.05,3.90910562]
[1765398255204,99.96649808,140.08,140.05,0.04910562]
[1765398255701,99.96649808,140.08,139.95,3.79]
[1765398255702,99.9658,140.01,139.95,3.79]
[1765398256009,99.9935,139.97,139.92,60.36]
[1765398256197,99.989,139.98,139.92,64.15]
[1765398256403,99.9582,140.02,139.92,64.15]
[1765398256596,0.04932572,139.98,139.96,0.04785487]
[1765398256799,0.04932572,139.98,139.96,3.83785487]
[1765398256994,99.9029,140.1,140.0,3.79]
[1765398257399,6.4223,140.1,140.01,10.2159]
[1765398257702,99.8943,140.11,139.99,3.79]
[1765398257898,99.881,140.13,140.05,3.79]
[1765398258204,199.7426,140.15,140.05,3.79]
[1765398258402,6.4203,140.15,140.06,3.79]
[1765398258607,99.8495,140.18,140.08,3.79]
[1765398258804,99.8808,140.13,140.01,103.7537]
[1765398259006,0.05355487,140.08,140.06,3.84222552]
[1765398259198,0.05441966,140.08,140.06,3.84222552]
[1765398259506,99.8655,140.15,140.06,3.84222552]
[1765398259507,99.8655,140.15,140.07,1.42]
[1765398259701,99.8865,140.12,140.06,3.79]
[1765398260210,99.8822,140.13,140.06,3.79]
[1765398260409,0.05258557,140.11,140.08,0.05314726]
[1765398261012,99.94948557,140.11,140.08,0.05314726]
[1765398261505,99.9155,140.08,139.98,3.79]
[1765398261708,99.9118,140.09,139.98,3.79]
[1765398261709,99.9293,140.06,139.98,3.79]
[1765398261899,99.9294,140.06,139.98,3.79]
[1765398262100,99.9118,140.09,139.98,3.79]
[1765398262301,99.9074,140.09,140.01,3.79]
[1765398262605,99.98396628,140.06,140.04,0.05501116]
[1765398262805,0.05306628,140.06,140.04,0.04797113]
[1765398263317,99.8742,140.14,140.04,5.25797113]
[1765398263508,6.4213,140.12,140.04,10.2146]
[1765398264200,6.4219,140.11,140.04,10.2146]
[1765398264400,0.05248935,140.09,140.07,3.79]
[1765398264606,99.837,140.19,140.08,3.79]
[1765398265012,99.8685,140.15,140.08,3.79]
[1765398265408,99.8724,140.14,140.08,3.79]
[1765398265604,6.4215,140.12,140.08,3.79]
[1765398265907,6.47531463,140.12,140.1,0.05267935]
[1765398266619,0.05381463,140.12,140.1,3.84267935]
[1765398266800,0.05381463,140.12,140.1,0.05267935]
[1765398266998,6.47521463,140.12,140.1,0.05267935]
[1765398267616,0.05381463,140.12,140.1,0.05267935]
[1765398268704,99.8387,140.19,140.1,10.26447935]
[1765398268705,6.419,140.17,140.1,10.26447935]
[1765398268903,99.8588,140.16,140.06,3.79]
[1765398269100,99.8649,140.15,140.06,3.79]
[1765398269308,6.4201,140.15,140.08,6.4228]
[1765398269503,99.8576,140.16,140.06,3.79]
[1765398269710,0.04522516,140.12,140.1,0.04717534]
[1765398270519,6.46672516,140.12,140.1,0.04717534]
[1765398271408,0.04522516,140.12,140.1,0.04717534]
[1765398271604,0.04522516,140.12,140.1,3.83717534]
[1765398271812,0.04522516,140.12,140.1,0.04717534]
[1765398273319,6.46662516,140.12,140.1,0.04717534]
[1765398275019,0.04522516,140.12,140.1,3.58717534]
[1765398275421,125.14420318,140.23,140.12,3.54]
[1765398275631,99.816,140.22,140.13,3.54]
[1765398275820,99.8293,140.2,140.1,60.38]
[1765398276015,99.8365,140.19,140.1,60.38]
[1765398276315,99.863,140.16,140.05,3.54]
[1765398276516,99.863,140.16,140.09,0.0457896]
[1765398276727,99.8517,140.17,140.09,0.0457896]
[1765398276913,99.8693,140.15,140.09,0.0457896]
[1765398277222,6.4221,140.11,140.09,0.0457896]
[1765398277826,6.421,140.13,140.09,3.5857896]
[1765398278026,99.8799,140.13,140.09,0.0457896]
[1765398278327,6.4218,140.11,140.09,0.0457896]
[1765398279821,99.9119,140.09,140.01,60.38]
[1765398280022,99.9148,140.08,140.01,60.38]
[1765398280326,125.22390318,140.11,140.01,63.92]
[1765398280919,0.0457896,140.07,140.05,0.0463267]
[1765398281818,0.0457896,140.07,140.05,3.5863267]
[1765398282613,125.19480318,140.15,140.06,8.02777611]
[1765398282819,25.32940318,140.19,140.08,3.54]
[1765398283020,99.8317,140.2,140.09,14.45027611]
[1765398283223,99.8317,140.2,140.19,1.22e-05]
[1765398283419,99.8317,140.2,140.19,7.611e-05]
[1765398283624,99.8317,140.2,140.18,3.736e-05]
[1765398283625,106.2492,140.2,140.18,3.736e-05]
[1765398283927,99.8506,140.17,140.12,49.76819308]
[1765398284127,99.8599,140.16,140.12,49.76819308]
[1765398284326,6.4204,140.14,140.12,28.99597982]
[1765398284520,6.46989707,140.14,140.12,0.04804682]
[1765398284828,7.88989707,140.14,140.12,0.048005]
[1765398285221,7.88989707,140.14,140.02,3.54]
[1765398285222,7.88989707,140.14,140.13,3.221e-05]
[1765398285523,6.4227,140.09,140.02,3.54]
[1765398286027,99.899,140.11,140.02,3.54]
[1765398286227,0.05085049,140.08,140.05,0.05278208]
[1765398286729,6.4236,140.07,140.05,0.05278208]
[1765398287028,0.05085049,140.08,140.05,0.05278208]
[1765398287219,6.4235,140.07,140.05,0.05278208]
[1765398287728,0.05085049,140.08,140.05,0.05278208]
[1765398288022,0.05085049,140.08,140.05,3.59278208]
[1765398288220,25.32940318,140.18,140.06,3.54]
[1765398288221,99.8439,140.18,140.06,3.54]
[1765398288727,6.4193,140.17,140.08,103.4541]
[1765398288932,59.52,140.22,140.11,3.54]
[1765398289319,0.04665158,140.18,140.15,0.05254866]
[1765398290032,99.89375158,140.18,140.15,0.05254866]
[1765398290227,0.04665158,140.18,140.15,0.05254866]
[1765398290728,6.4191,140.17,140.15,0.05254866]
[1765398291117,6.4206,140.14,140.07,3.54]
[1765398291423,99.84,140.19,140.08,3.54]
[1765398291724,6.4187,140.18,140.1,6.422]
[1765398291928,99.8092,140.23,140.1,3.54]
[1765398292134,0.05486181,140.18,140.15,3.58896416]
[1765398292424,0.0540751,140.18,140.15,3.59090459]
[1765398292625,0.0540751,140.18,140.15,10.01030459]
[1765398292826,0.0540751,140.18,140.15,0.05090459]
[1765398294019,6.4192,140.17,140.15,0.05090459]
[1765398295329,99.9018751,140.18,140.15,0.05090459]
[1765398295330,0.0540751,140.18,140.15,0.05090459]
[1765398295732,0.0540751,140.18,140.15,3.59090459]
[1765398296630,99.789,140.26,140.15,3.59090459]
[1765398296827,159.2786,140.28,140.16,3.54]
[1765398297025,6.4155,140.25,140.16,103.3927]
[1765398297232,99.7632,140.3,140.18,3.54]
[1765398297429,159.2387,140.33,140.22,3.54]
[1765398297728,0.04512514,140.29,140.26,0.04721291]
[1765398298725,6.45882514,140.29,140.26,0.04721291]
[1765398298933,0.04512514,140.29,140.26,0.04721291]
[1765398299737,0.04512514,140.29,140.26,3.58721291]
[1765398300227,6.4108,140.35,140.28,3.54]
[1765398300430,6.4108,140.35,140.27,6.4141]
[1765398300431,99.7582,140.3,140.22,3.54]
[1765398300646,99.775,140.28,140.18,3.54]
[1765398300829,6.4145,140.27,140.2,6.4175]
[1765398301133,199.4562,140.35,140.24,3.54]
[1765398301336,6.4086,140.4,140.33,3.54]
[1765398301541,99.6856,140.41,140.35,0.04855644]
[1765398301739,99.6944,140.39,140.35,0.04855644]
[1765398301931,106.1187,140.37,140.35,0.04855644]
[1765398302238,99.76075644,140.37,140.26,3.54]
[1765398302431,6.4099,140.37,140.28,9.9536]
[1765398302626,99.7224,140.35,140.28,3.54]
[1765398302834,99.7313,140.34,140.24,3.54]
[1765398303035,0.04855644,140.3,140.28,0.04782524]
[1765398303234,0.04855644,140.3,140.28,3.58782524]
[1765398303437,99.702,140.38,140.28,3.58782524]
[1765398303639,99.702,140.38,140.28,3.54]
[1765398303840,99.7228,140.35,140.28,3.54]
[1765398304041,99.7302,140.34,140.23,4.57]
[1765398304432,99.7653,140.29,140.27,0.04633001]
[1765398304633,99.7377,140.33,140.27,0.04818152]
[1765398304832,106.1794,140.29,140.27,0.04818152]
[1765398305036,99.7939,140.25,140.17,4.57]
[1765398305236,99.8008,140.24,140.17,4.57]
[1765398305439,6.4165,140.23,140.17,4.57]
[1765398305641,14.5511385,140.28,140.17,104.4181]
[1765398305838,99.7525,140.31,140.21,4.57]
[1765398306036,0.04708192,140.27,140.25,0.04663215]
[1765398306837,0.04708192,140.27,140.25,4.61663215]
[1765398307145,0.04708192,140.27,140.25,0.04663215]
[1765398307346,99.82688192,140.27,140.25,0.04663215]
[1765398307548,101.24688192,140.27,140.16,4.57]
[1765398307734,99.8034,140.24,140.16,4.57]
[1765398308238,6.4164,140.23,140.16,4.57]
[1765398308546,0.0454977,140.21,140.18,0.04683806]
[1765398309040,0.0454977,140.21,140.18,4.61683806]
[1765398309345,0.0454977,140.21,140.18,0.04683806]
[1765398310643,99.8718977,140.21,140.18,0.04683806]
[1765398310934,6.4178,140.2,140.18,0.04683806]
[1765398311341,0.0454977,140.21,140.1,4.57]
[1765398311632,99.7867,140.26,140.14,4.53]
[1765398311836,99.7867,140.26,140.09,99.9006]
[1765398311837,99.8291,140.2,140.1,4.53]
[1765398312038,99.8534,140.17,140.05,64.85]
[1765398312243,14.5511385,140.18,140.07,4.53]
[1765398312438,0.05029275,140.12,140.1,4.58468085]
[1765398312643,99.8023,140.24,140.12,4.53]
[1765398312847,105.21871577,140.26,140.15,4.53]
[1765398313041,99.8013,140.24,140.15,4.53]
[1765398313239,105.21201577,140.26,140.16,6.4193]
[1765398313443,5.42531577,140.26,140.16,10.9493]
[1765398313645,0.04924358,140.22,140.2,0.05306763]
[1765398313843,99.7461,140.32,140.2,4.58306763]
[1765398314149,99.7461,140.32,140.2,4.53]
[1765398314444,99.7655,140.29,140.2,4.53]
[1765398314646,105.16441577,140.33,140.21,4.53]
[1765398314945,99.7381,140.33,140.26,4.58116526]
[1765398315137,5.42531577,140.33,140.26,4.58116526]
[1765398315334,99.6966,140.39,140.28,4.53]
[1765398315656,99.6584,140.45,140.28,4.53]
[1765398315657,99.6584,140.45,140.34,4.53]
[1765398315839,99.646,140.46,140.34,4.53]
[1765398315840,5.42531577,140.46,140.37,6.4097]
[1765398316041,99.6196,140.5,140.4,4.53]
[1765398316242,99.6196,140.5,140.39,0.04561855]
[1765398316243,105.05881577,140.48,140.39,0.04561855]
[1765398316443,5.42531577,140.42,140.39,0.04561855]
[1765398316642,99.71931855,140.42,140.3,4.53]
[1765398316950,6.4084,140.4,140.3,4.53]
[1765398317140,14.53233144,140.39,140.3,4.53]
[1765398317346,6.4089,140.39,140.3,4.53]
[1765398317549,99.76151855,140.36,140.33,0.05258875]
[1765398317758,99.7307,140.34,140.27,60.32]
[1765398318138,99.7241,140.35,140.27,60.32]
[1765398318548,99.7034,140.38,140.27,60.32]
[1765398318853,0.05475945,140.34,140.31,0.05443006]
[1765398320139,0.05475945,140.34,140.31,4.58443006]
[1765398320546,3.1537147,140.43,140.32,104.2725]
[1765398320947,3.1537147,140.43,140.35,4.53]
[1765398321149,14.53233144,140.37,140.19,299.5079]
[1765398321349,14.53233144,140.37,140.22,99.8131]
[1765398321542,0.04344785,140.31,140.28,0.05268673]
[1765398321748,0.04344785,140.31,140.28,0.04517041]
[1765398322351,20.94073144,140.41,140.28,0.04517041]
[1765398322548,20.94073144,140.41,140.26,60.3]
[1765398322748,14.53233144,140.41,140.28,6.4134]
[1765398323153,14.53233144,140.41,140.27,4.53]
[1765398323349,14.53233144,140.41,140.33,0.05031792]
[1765398323858,99.6955,140.39,140.33,0.05031792]
[1765398324166,99.6955,140.39,140.19,99.8355]
[1765398324167,99.725,140.35,140.23,4.53]
[1765398324852,14.53233144,140.37,140.24,104.3249]
[1765398325155,14.53233144,140.37,140.23,99.807]
[1765398325156,117.35334614,140.43,140.3,4.53]
[1765398325359,17.68604614,140.43,140.31,5.45667196]
[1765398325563,3.1537147,140.43,140.33,4.53]
[1765398325863,3.1537147,140.43,140.34,5.45667196]
[1765398326062,3.1537147,140.43,140.34,9.98667196]
[1765398326357,3.1537147,140.43,140.37,4.57705458]
[1765398326659,3.1537147,140.43,140.4,4.53]
[1765398326863,99.6105,140.51,140.41,5.45667196]
[1765398327063,99.6241,140.49,140.45,0.05294686]
[1765398327264,114.16473144,140.48,140.45,7.9995192]
[1765398327656,6.4056,140.47,140.45,7.9995192]
[1765398328256,0.05166231,140.47,140.45,8.04854283]
[1765398328457,14.53233144,140.52,140.45,12.78663637]
[1765398328665,114.11663144,140.55,140.49,8.45413744]
[1765398328857,114.10803144,140.56,140.49,8.45413744]
[1765398329260,114.10803144,140.56,140.5,8.45413744]
[1765398329464,99.5757,140.56,140.52,0.05264607]
[1765398329664,114.10803144,140.56,140.52,0.05264607]
[1765398330067,6.4024,140.54,140.52,0.05264607]
[1765398330262,14.53233144,140.56,140.52,0.05264607]
[1765398330569,99.5594,140.58,140.53,8.45413744]
[1765398330774,99.5678,140.57,140.52,8.50678351]
[1765398331074,99.5737,140.56,140.52,8.50678351]